{"text_format":"1","workbook":"xlsx","n_sheets":1,"sheets":["Emp"],"not_rendered":{"charts":0,"images":0,"macros":1,"external_links":0,"defined_names":0,"comments":0,"pivot_tables":0},"unopened":[],"bounds":{"document_bytes":16777216,"sheet_cells":100000,"rows_first":2000,"rows_last":500,"rows_between":2000,"halvings":0,"cell_chars":16384,"cell_head_chars":4096},"cells_cut":0,"cells_raw":0,"read":"whole","date_system":"1900"}

{"sheet":"Emp","index":0,"n_rows":14,"n_cols":10,"rows_kept":14,"cut":false,"hidden":false,"merged":[]}
["الاسم","الرقم ","ساعة الحضور ","تاريخ الحضور","ساعة الانصراف","تاريخ الانصراف",null,null,"in","out"]
["احمد علي",1,null,null,null,null,null,null,{"$f":"IF(C2<>\"\",1,\"\")","v":""},{"$f":"IF(E2<>\"\",1,\"\")","v":""}]
["مؤمن جمعة",2,null,null,null,null,null,null,{"$f":"IF(C3<>\"\",1,\"\")","v":""},{"$f":"IF(E3<>\"\",1,\"\")","v":""}]
["هاني عبد المجيد",3,null,null,null,null,null,null,"",""]
["محمود عثمان ",4,null,null,null,null,null,null,"",""]
["كريم فتحي",5,null,null,null,null,null,null,"",""]
["اشرف علي",6,null,null,null,null,null,null,"",""]
[null,null,null,null,null,null,null,null,"",""]
[null,null,null,null,null,null,null,null,"",""]
[null,null,null,null,null,null,null,null,"",""]
[null,null,null,null,null,null,null,null,"",""]
[null,null,null,null,null,null,null,null,"",""]
[null,null,null,null,null,null,null,null,"",""]
[null,null,null,null,null,null,null,null,""]